Cogmind - Beta 15 @@@ ROGUE MODE // 2025.05.24 @ 22:37:32 Player: Player Result: Destroyed by B-86 Titan with Railgun Performance ------------- Evolutions (7) 3500 Regions Visited (8) 1600 Robots Destroyed (49) 245 Value Destroyed (1753) 1753 Prototype IDs (1) 20 Alien Tech Used (0) 0 Bonus (800) 800 TOTAL SCORE: 7918 Bonus ------- Registered with UFD 300 Met Optimus in HQ 500 Cogmind --------- Core Integrity 0/1300 Matter 300/300 Energy 100/100 System Corruption 37% Temperature Cool (0) Movement Flying (40) Location -3/Research Parts ------- > --- POWER (1) -------- (None) > --- PROPULSION (6) --- Xenon Bombardment Thruster > --- UTILITY (12) ----- Advanced Target Analyzer > --- WEAPON (2) ------- (None) > --- INVENTORY (5) ---- Light Antimatter Reactor Antigrav Array Peak State ------------ > --- POWER ------------ Micro Fission Core > --- PROPULSION ------- Improved Gravmag System Gravmag Array Antigrav System Antigrav System Combat Gravmag System > --- UTILITY ---------- Advanced Power Amplifier Large Storage Unit Advanced Trap Scanner Advanced Sensor Array Advanced Signal Interpreter Improved Terrain Scanner Advanced Melee Analysis Suite Improved Medium Armor Plating EM Shield Drone Bay > --- WEAPON ----------- Heavy Proton Missile Launcher Katana > --- INVENTORY -------- Gravmag Array Gravmag Array Antigrav System Triangulator Advanced Melee Analysis Suite Improved Transmission Jammer Reaction Control System Improved Phase Shifter Improved Medium Armor Plating Improved Dynamic Insulation System Improved Dynamic Insulation System Hardcell Cannon Great Maul [Rating: 103] Favorites ----------- Power Micro Fission Core Engine Improved Deuterium Engine Power Core Micro Fission Core Reactor Particle Reactor Propulsion Light Treads Treads Light Treads Leg Thunder Leg Wheel Armored Wheel Hover Unit Antigrav System Flight Unit Xenon Bombardment Thruster Utility Large Storage Unit Device Seismic Detector Storage Large Storage Unit Processor Advanced Signal Interpreter Hackware Hacking Suite Protection Layered Light Armor Plating Weapon Heavy Battle Rifle Energy Gun Subdweller Laser Ballistic Gun Heavy Battle Rifle Ballistic Cannon Mass Driver Launcher Heavy Proton Missile Launcher Special Weapon Mining Laser Impact Weapon Great Maul Slashing Weapon Katana Piercing Weapon Spear Build | -11 -10 -10 -7 -5 -4 -4 -4 -3 ------- Run | Yrd Mat Sub Scr Fac Fac Upp Upp Res Slots Evolved 14 | . . . . 10 2 . . 2 Power . | . . . . . . . . . Propulsion 4 | . . . . 4 . . . . Utility 10 | . . . . 6 2 . . 2 Weapon . | . . . . . . . . . Parts Attached 117 | 8 . 3 9 41 24 . 2 30 Power 10 | 1 . . 2 2 2 . . 3 Engine 3 | 1 . . 2 . . . . . Core 4 | . . . . 2 2 . . . Reactor 3 | . . . . . . . . 3 Propulsion 39 | 2 . . . 16 6 . . 15 Treads 4 | 2 . . . 1 . . . 1 Leg 1 | . . . . . . . . 1 Wheel 4 | . . . . 4 . . . . Hover 22 | . . . . 11 5 . . 6 Flight 8 | . . . . . 1 . . 7 Utility 44 | 3 . . 6 14 13 . 1 7 Device 21 | 2 . . . 8 8 . 1 2 Storage 5 | 1 . . 2 . 1 . . 1 Processor 7 | . . . . 2 2 . . 3 Hackware 1 | . . . . . 1 . . . Protection 10 | . . . 4 4 1 . . 1 Artifact . | . . . . . . . . . Weapon 24 | 2 . 3 1 9 3 . 1 5 Energy Gun 4 | 1 . 2 . . . . 1 . Energy Cannon . | . . . . . . . . . Ballistic Gun 5 | 1 . . 1 3 . . . . Ballistic Cannon 2 | . . . . 1 1 . . . Launcher 2 | . . . . . 1 . . 1 Special Weapon 1 | . . 1 . . . . . . Impact Weapon 3 | . . . . 3 . . . . Slashing Weapon 2 | . . . . 1 1 . . . Piercing Weapon 5 | . . . . 1 . . . 4 Special Melee Weapon . | . . . . . . . . . Unidentified Prototypes 1 | . . . . . 1 . . . Parts Lost 53 | . . . . 9 11 5 . 28 Power 4 | . . . . . 1 1 . 2 Propulsion 20 | . . . . 2 5 1 . 12 Utility 21 | . . . . 5 5 3 . 8 Weapon 8 | . . . . 2 . . . 6 Highest Loss Streak 10 | . . . . 3 5 2 . 10 To Critical Strikes 1 | . . . . . . . . 1 Average Backups 11 | 6 8 7 12 14 11 4 4 4 Power . | 1 1 1 . . . . . . Propulsion 2 | 2 3 2 2 2 2 1 1 1 Utility 5 | . 2 2 6 9 6 . . . Weapon 2 | 1 2 2 3 3 2 3 3 1 Tool/Special . | . . . . . . . . . Unused Backups 28 | 4 . 1 6 6 9 . . 2 Power 3 | 1 . . 2 . . . . . Propulsion 7 | 2 . 1 4 . . . . . Utility 15 | . . . . 5 8 . . 2 Weapon 3 | 1 . . . 1 1 . . . Tool/Special . | . . . . . . . . . Average Slot Usage (%) 87 | . 100 100 100 90 84 33 22 42 Engine 6 | . 14 14 14 1 . . . . Core 1 | . . . . 3 4 . . . Treads 13 | . 28 28 28 2 . . . . Wheel 1 | . . . . 7 . . . . Hover 8 | . . . . 17 23 5 5 6 Device 10 | . 14 14 . 19 24 11 . 4 Storage 8 | . 14 14 14 5 4 . . 2 Processor 4 | . . . . 4 9 10 10 10 Protection 9 | . . . 13 12 4 . . 1 Energy Gun 6 | . 14 14 14 . . . . . Ballistic Gun 6 | . 14 7 13 3 . . . . Impact Weapon 1 | . . . . 2 4 . . . Slashing Weapon 1 | . . . . 1 4 5 5 1 Peak Build Rating 103 | 9 8 9 19 85 103 49 30 80 Average Rating 42 | 6 8 8 17 68 87 40 25 52 On Entrance 25 | . 8 8 9 17 83 49 25 26 Naked Turns . | . . . . . . . . . Heaviest Build 62 | 12 12 14 45 62 50 12 3 39 Greatest Support 58 | 40 40 40 40 58 56 20 20 56 Greatest Overweight (x) 5 | . . . 1 3 2 . . 5 Average Overweight (x) . | . . . . . . . . . Largest Inventory Capacity 15 | 8 8 8 15 15 15 5 5 10 Average Capacity 12 | 7 8 8 12 15 13 5 5 7 Most Carried 15 | 8 8 8 15 15 15 5 5 7 Average Carried 11 | 6 8 7 12 14 13 5 5 5 Final Capacity 15 | 8 8 8 15 15 5 5 5 5 Final Carried 15 | 8 8 8 15 15 5 5 5 3 Class Distribution -------------------- 63% | Mutant 12% | Gladiator 5% | Derelict-Mutant 4% | Scout 4% | Ninja 3% | Scavenger-Mutant Dominant Class ---------------- Mutant | -10/Materials Mutant | -10/Subcaves Mutant | -7/Scraptown Mutant | -5/Factory Ninja | -4/Factory Mutant | -4/Upper Caves Mutant | -4/Upper Caves Gladiator | -3/Research Resources | -11 -10 -10 -7 -5 -4 -4 -4 -3 ----------- Run | Yrd Mat Sub Scr Fac Fac Upp Upp Res Matter Collected 1962 | 308 . 32 62 648 479 33 5 395 Remotely . | . . . . . . . . . Salvage Created 2651 | 250 . . . 629 737 . . 1035 Parts 121 | 19 . . . 21 28 . . 53 Haulers Intercepted 1 | . . . . . 1 . . . Recyclers Shooed 2 | . . . . . 2 . . . Parts Field Recycled . | . . . . . . . . . Retrieved Matter . | . . . . . . . . . Parts Self-Destructed 12 | . . 12 . . . . . . Prevented . | . . . . . . . . . Kills | -11 -10 -10 -7 -5 -4 -4 -4 -3 ------- Run | Yrd Mat Sub Scr Fac Fac Upp Upp Res Combat Hostiles Destroyed 25 | . . . . 7 6 . . 12 Melee 18 | . . . . 3 4 . . 11 Guns 2 | . . . . 2 . . . . Cannons 2 | . . . . 1 . . . 1 AOE 2 | . . . . . 2 . . . Classes Destroyed 11 | 3 . . . 4 2 . . 2 Worker 3 | 2 . . . . 1 . . . Builder 1 | . . . . 1 . . . . Tunneler 8 | 7 . . . 1 . . . . Hauler 1 | . . . . . 1 . . . Recycler 9 | 1 . . . 2 3 . . 3 Mechanic 1 | . . . . . . . . 1 Watcher 1 | . . . . . . . . 1 Swarmer 10 | . . . . . 4 . . 6 Sentry 1 | . . . . 1 . . . . Hunter 1 | . . . . 1 . . . . Programmer 13 | . . . . 5 2 . . 6 Best Kill Streak 4 | 3 . . . 2 3 . . 4 Combat Bots Only 4 | . . . . 2 2 . . 4 Max Kills in Single Turn 1 | 1 . . . 1 1 . . 1 Gunslinging . | . . . . . . . . . Exploded 1 | . . . . . 1 . . . Melee 1 | . . . . 1 1 . . 1 Uniques/NPCs Destroyed . | . . . . . . . . . Combat | -11 -10 -10 -7 -5 -4 -4 -4 -3 -------- Run | Yrd Mat Sub Scr Fac Fac Upp Upp Res Hostile Shots Fired 547 | . . . . 104 209 33 . 201 Missed 180 | . . . . 26 97 17 . 40 Hits 367 | . . . . 78 112 16 . 161 Projectile 367 | . . . . 78 112 16 . 161 Critical Strikes 20 | . . . . 4 5 . . 11 Part Disruptions 4 | . . . . 1 . . . 3 Actively Blocked 1 | . . . . 1 . . . . Damage Taken 7952 | . . 83 . 1705 2037 316 . 3811 Core 2188 | . . 17 . 249 479 134 . 1309 Absorbed by Shields . | . . . . . . . . . Redirected to Shielding 104 | . . . . . . . . 104 Ignored by Resistances 312 | . . . . 149 54 . . 109 Core Remaining (%) 78 | 100 . . 93 75 . . 46 . Volleys Fired 85 | 28 . 4 . 34 4 . . 15 Largest 2 | 2 . 2 . 2 1 . . 1 Hottest 100 | 70 . 100 . 80 55 . . 55 Shots Fired 135 | 55 . 6 . 55 4 . . 15 Gun 87 | 55 . 4 . 28 . . . . Cannon 44 | . . . . 27 2 . . 15 Launcher 2 | . . . . . 2 . . . Special 2 | . . 2 . . . . . . Kinetic 102 | 28 . 2 . 55 2 . . 15 Thermal 31 | 27 . 4 . . . . . . Explosive . | . . . . . . . . . Electromagnetic 2 | . . . . . 2 . . . Robot Hit Streak 10 | 9 . . . 10 . . . 4 Robot Miss Streak 7 | 3 . 2 . 7 . . . 4 Penetration Max . | . . . . . . . . . Secondary Targets . | . . . . . . . . . Shots Hit Robots 148 | 30 . . . 49 26 . . 43 Core Hits 59 | 13 . . . 14 12 . . 20 Critical Kills . | . . . . . . . . . Critical Parts Destroyed 6 | . . . . 6 . . . . Critical Strikes 21 | . . . . 8 4 . . 9 Smash 6 | . . . . 6 . . . . Sever 5 | . . . . 1 4 . . . Impale 10 | . . . . 1 . . . 9 Melee Attacks 214 | . . . . 85 67 . . 62 Impact 59 | . . . . 41 18 . . . Slashing 74 | . . . . 23 49 . . 2 Piercing 81 | . . . . 21 . . . 60 Sneak Attacks 13 | . . . . 4 5 . . 4 Combat Hostiles . | . . . . . . . . . Follow-up Attacks 7 | . . . . 2 3 . . 2 Damage Inflicted 5050 | 333 . . . 1703 1267 . . 1747 Guns 756 | 333 . . . 423 . . . . Cannons 550 | . . . . 195 . . . 355 Explosions 200 | . . . . . 200 . . . Melee 3544 | . . . . 1085 1067 . . 1392 Ramming . | . . . . . . . . . Kinetic 1133 | 160 . . . 618 . . . 355 Thermal 173 | 173 . . . . . . . . Explosive . | . . . . . . . . . Electromagnetic 200 | . . . . . 200 . . . Impact 752 | . . . . 671 81 . . . Slashing 1018 | . . . . 32 986 . . . Piercing 1774 | . . . . 382 . . . 1392 Highest Corruption 37 | . . . . 13 16 16 16 37 Average Corruption 8 | . . . . 4 14 16 16 20 Corruption Purged . | . . . . . . . . . Corruption Blocked . | . . . . . . . . . Effects 56 | . . . . 29 4 3 2 18 Message Errors 15 | . . . . 9 . 1 . 5 Matter Fused 15 | . . . . 8 2 . 1 4 Heat Flow Errors 3 | . . . . 2 . 1 . . Energy Discharges 4 | . . . . 2 . . . 2 Parts Rejected 2 | . . . . . 1 . . 1 Data Loss (minor) 6 | . . . . 5 . . . 1 Data Loss (major) 2 | . . . . 1 . 1 . . Misfires 3 | . . . . 2 . . . 1 Alerts 3 | . . . . . . . 1 2 Misdirections 2 | . . . . . 1 . . 1 Weapon Failures 1 | . . . . . . . . 1 Overload Shots . | . . . . . . . . . Overflow Damage 812 | . . . . 446 75 . . 291 Projectiles 52 | . . . . . . . . 52 Explosions 9 | . . . . . 9 . . . Melee 751 | . . . . 446 66 . . 239 Knockbacks 11 | . . . . 4 1 . . 6 Impact 4 | . . . . 3 1 . . . Kinetic 7 | . . . . 1 . . . 6 Secondary . | . . . . . . . . . Self-Inflicted Damage 3 | . . . . . 3 . . . Shots 1 | . . . . . 1 . . . Rammed . | . . . . . . . . . Targets Rammed . | . . . . . . . . . Kicked . | . . . . . . . . . Crushed . | . . . . . . . . . Highest Temperature 172 | 80 . . . 172 . 164 . 42 Average Temperature 50 | 30 . . . 62 . 85 . 32 Received Heat Transfer 117 | . . . . 72 9 18 . 18 Siege Activations . | . . . . . . . . . Martial Activations . | . . . . . . . . . Shielding Activations . | . . . . . . . . . Robots Disrupted . | . . . . . . . . . Combat Hostiles . | . . . . . . . . . Robots Corrupted 4 | . . . . 3 1 . . . Combat Hostiles 1 | . . . . 1 . . . . Parts Fried 4 | . . . . 1 3 . . . Impact Corruptions 16 | . . . . 15 1 . . . Robots Melted . | . . . . . . . . . Combat Hostiles . | . . . . . . . . . Parts Melted 1 | 1 . . . . . . . . Heat Transferred 518 | 518 . . . . . . . . Parts Sabotaged . | . . . . . . . . . Parts Stolen . | . . . . . . . . . Parts Stripped . | . . . . . . . . . Power Chain Reactions . | . . . . . . . . . Alert | -11 -10 -10 -7 -5 -4 -4 -4 -3 ------- Run | Yrd Mat Sub Scr Fac Fac Upp Upp Res Maximum Alert Level . | . . . . . . . . . Low Security (%) 100 | 100 100 . . 100 100 . . 100 Level 1 . | . . . . . . . . . Level 2 . | . . . . . . . . . Level 3 . | . . . . . . . . . Level 4 . | . . . . . . . . . Level 5 . | . . . . . . . . . High Security . | . . . . . . . . . Max Security . | . . . . . . . . . Peak Influence 121 | 15 . . . 90 99 . . 121 Initial 29 | . . . . . 29 . . . Average 32 | 1 . . . 27 33 . . 62 Influence Increases 1631 | 50 . 45 . 465 460 45 . 566 Destroy 0b10 Robot/C 500 | . . . . 140 120 . . 240 Destroy 0b10 Robot/NC 120 | 50 . . . 20 25 . . 25 Destroy Leader 104 | . . . . 50 22 . . 32 Successful Hack 63 | . . . . 38 25 . . . Disable Machine 75 | . . . . 45 30 . . . Destroy Structure 214 | . . . . 112 58 . . 44 Partial Spotted 45 | . . . . 30 . . . 15 Lose Combat Pursuer 510 | . . 45 . 30 180 45 . 210 Influence Decreases 1621 | 50 . 45 . 404 487 74 5 556 Entered New Map 48 | . . . . . 32 14 2 . Time Decay 1007 | 50 . 45 . 343 270 20 3 276 Lost Part 491 | . . . . 61 110 40 . 280 Lost Ally 75 | . . . . . 75 . . . Squads Dispatched 22 | . . . . 14 5 . . 3 Investigation 7 | . . . . 5 2 . . . Extermination 11 | . . . . 5 3 . . 3 Reinforcement 1 | . . . . 1 . . . . Assault . | . . . . . . . . . Garrison 3 | . . . . 3 . . . . Intercept . | . . . . . . . . . Searches Triggered . | . . . . . . . . . Construction Impeded . | . . . . . . . . . Haulers Reinforced . | . . . . . . . . . Active Scanning Responses . | . . . . . . . . . Cargo Convoy Interrupts . | . . . . . . . . . Stealth | -11 -10 -10 -7 -5 -4 -4 -4 -3 --------- Run | Yrd Mat Sub Scr Fac Fac Upp Upp Res Distress Signals 3 | . . . . 2 1 . . . Communications Jammed . | . . . . . . . . . Distress Signals . | . . . . . . . . . Times Spotted 88 | . . 7 . 13 32 9 . 27 Peak Tracking Total 11 | . . 5 . 3 8 11 . 6 Tactical Retreats 14 | . . 2 . 1 5 2 . 4 Traps | -11 -10 -10 -7 -5 -4 -4 -4 -3 ------- Run | Yrd Mat Sub Scr Fac Fac Upp Upp Res Traps Triggered 4 | . . 2 . . 1 . . 1 Indirectly . | . . . . . . . . . Trap Hack Attempts . | . . . . . . . . . Triggered . | . . . . . . . . . Disarmed . | . . . . . . . . . Reprogrammed . | . . . . . . . . . Reused . | . . . . . . . . . Traps Extracted . | . . . . . . . . . Installed . | . . . . . . . . . Triggered . | . . . . . . . . . Machines | -11 -10 -10 -7 -5 -4 -4 -4 -3 ---------- Run | Yrd Mat Sub Scr Fac Fac Upp Upp Res Machines Disabled 5 | . . . . 3 2 . . . Max in Single Turn 1 | . . . . 1 1 . . . Garrison Access 1 | . . . . . 1 . . . Machines Repaired . | . . . . . . . . . Machines Dismantled . | . . . . . . . . . Machines Sabotaged . | . . . . . . . . . Overloaded Fab Kills . | . . . . . . . . . Hacking | -11 -10 -10 -7 -5 -4 -4 -4 -3 --------- Run | Yrd Mat Sub Scr Fac Fac Upp Upp Res Machines Accessed 19 | . . . 1 11 7 . . . Terminals 9 | . . . . 6 3 . . . Fabricators 1 | . . . . . 1 . . . Repair Stations . | . . . . . . . . . Recycling Units 6 | . . . . 5 1 . . . Scanalyzers . | . . . . . . . . . Garrison Access 2 | . . . . . 2 . . . Total Hacks 37 | . . . 1 19 17 . . . Successful 17 | . . . 1 9 7 . . . Failed 20 | . . . . 10 10 . . . Catastrophic 6 | . . . . 4 2 . . . Database Lockouts . | . . . . . . . . . Manual 29 | . . . . 19 10 . . . Terminals 23 | . . . . 13 10 . . . Fabricators 1 | . . . . . 1 . . . Repair Stations . | . . . . . . . . . Recycling Units 9 | . . . . 6 3 . . . Scanalyzers . | . . . . . . . . . Garrison Access 3 | . . . . . 3 . . . Terminal Hacks 3 | . . . 1 . 2 . . . Record 1 | . . . 1 . . . . . Locate Traps 1 | . . . . . 1 . . . Hauler Manifests 1 | . . . . . 1 . . . Fabricator Hacks . | . . . . . . . . . Repair Station Hacks . | . . . . . . . . . Recycling Unit Hacks . | . . . . . . . . . Scanalyzer . | . . . . . . . . . Garrison Access Hacks 1 | . . . . . 1 . . . Seal Access 1 | . . . . . 1 . . . Unauthorized Hacks 13 | . . . . 9 4 . . . Terminals 6 | . . . . 4 2 . . . Assimilate 1 | . . . . 1 . . . . Botnet 5 | . . . . 3 2 . . . Fabricators 1 | . . . . . 1 . . . Liberate 1 | . . . . . 1 . . . Repair Stations . | . . . . . . . . . Recycling Units 6 | . . . . 5 1 . . . Fedlink 6 | . . . . 5 1 . . . Scanalyzers . | . . . . . . . . . Garrison Access . | . . . . . . . . . Data Cores Recovered . | . . . . . . . . . Used . | . . . . . . . . . Hacking Detections 13 | . . . . 7 6 . . . Full Trace Events 1 | . . . . . 1 . . . Feedback Events . | . . . . . . . . . Feedback Blocked . | . . . . . . . . . Robot Schematics Acquired . | . . . . . . . . . Robots Built . | . . . . . . . . . Authchips . | . . . . . . . . . Time . | . . . . . . . . . Total Robot Build Rating . | . . . . . . . . . Part Schematics Acquired . | . . . . . . . . . Parts Built . | . . . . . . . . . Authchips . | . . . . . . . . . Time . | . . . . . . . . . Total Part Build Rating . | . . . . . . . . . Parts Repaired . | . . . . . . . . . Time . | . . . . . . . . . Parts Recycled . | . . . . . . . . . Recycled Matter . | . . . . . . . . . Retrieved Matter . | . . . . . . . . . Retrieved Components . | . . . . . . . . . Parts Scanalyzed . | . . . . . . . . . Part Schematics Acquired . | . . . . . . . . . Parts Damaged . | . . . . . . . . . Bothacking | -11 -10 -10 -7 -5 -4 -4 -4 -3 ------------ Run | Yrd Mat Sub Scr Fac Fac Upp Upp Res Used RIF Installer . | . . . . . . . . . Robots Hacked . | . . . . . . . . . Non-combat . | . . . . . . . . . Combat . | . . . . . . . . . Robot Hacks Applied . | . . . . . . . . . Relay Couplers Released . | . . . . . . . . . Fabnet Peak Effective % . | . . . . . . . . . Robots Rewired . | . . . . . . . . . Allies Hacked 1 | . . . . . 1 . . . Hacks Repelled . | . . . . . . . . . Allies | -11 -10 -10 -7 -5 -4 -4 -4 -3 -------- Run | Yrd Mat Sub Scr Fac Fac Upp Upp Res Total Allies 4 | . . . . 1 3 . . . Largest Group 2 | . . . . 1 2 . . . Highest-Rated Group 94 | . . . . 26 94 . . . Highest-Rated Ally 47 | . . . . 26 47 . . . Total Orders 2 | . . . . . 2 . . . EXPLORE 1 | . . . . . 1 . . . RETURN 1 | . . . . . 1 . . . Ally Attacks 8 | . . . . . 8 . . . Total Damage 165 | . . . . . 165 . . . Kills . | . . . . . . . . . Allies Corrupted 2 | . . . . . 2 . . . Allies Melted . | . . . . . . . . . Intel | -11 -10 -10 -7 -5 -4 -4 -4 -3 ------- Run | Yrd Mat Sub Scr Fac Fac Upp Upp Res Active Infowar (turns) 3492 | 126 46 245 87 1602 844 120 7 415 Sensors 1884 | . . . . 1138 746 . . . Terrain 1105 | 42 . . . 679 118 . . 266 Traps 289 | . . . . . 169 120 . . Seismic 1598 | 84 46 245 87 803 . . 7 326 Machine Analysis 31 | . . . . . . . . 31 Jamming 64 | . . . . . 64 . . . Robot Analysis Total . | . . . . . . . . . Derelict Logs Recovered 3 | . . . 2 . . 1 . . Drone Launches 6 | . . . . . 6 . . . Drone Recoveries 2 | . . . . . 2 . . . Exploration | -11 -10 -10 -7 -5 -4 -4 -4 -3 ------------- Run | Yrd Mat Sub Scr Fac Fac Upp Upp Res Turns Passed 6473 | 340 46 245 2559 1606 844 120 53 660 Spaces Moved 4609 | 152 25 119 1311 1173 845 200 83 701 Core 5 | 4 . . . . . . . 1 Treads 1618 | 148 25 119 1311 . . . . 15 Legs . | . . . . . . . . . Wheels 503 | . . . . 503 . . . . Hover 2296 | . . . . 670 845 200 83 498 Flight 187 | . . . . . . . . 187 Fastest Speed 34 | 50 160 160 160 48 48 60 60 34 Average Speed 108 | 157 160 160 192 85 54 60 60 50 Slowest Speed 380 | 160 160 160 240 295 220 60 60 380 Overloaded Moves . | . . . . . . . . . Propulsion Burnouts . | . . . . . . . . . Robots Hopped . | . . . . . . . . . Potential Cave-ins 18 | . . . . 10 8 . . . Cave-ins Triggered 3 | . . . . 1 1 . . 1 Exploration Rate (%) 26 | 10 9 10 80 30 23 43 16 18 Regions Visited 8 Branch Regions 4 Pre-discovered Areas 2 | . . . . 1 . 1 . . Known Exits Taken 4 | . . . . 1 1 1 1 . Unknown Exits Taken 4 | 1 1 1 1 . . . . . Scrap Searched 7 | . . . 4 . . 2 1 . Spaces Dug 112 | . . . . 59 35 . . 18 Terrain Destroyed 124 | . . . . 67 35 . . 22 Melee 95 | . . . . 44 33 . . 18 Projectile 29 | . . . . 23 2 . . 4 AOE . | . . . . . . . . . Terrain Rammed . | . . . . . . . . . Walls Destroyed . | . . . . . . . . . Machines Disabled . | . . . . . . . . . Actions | -11 -10 -10 -7 -5 -4 -4 -4 -3 --------- Run | Yrd Mat Sub Scr Fac Fac Upp Upp Res Total 5615 | 206 31 161 1359 1578 1133 199 85 863 Wait 421 | 2 7 33 4 181 151 . . 43 Move 4600 | 151 24 118 1310 1171 844 199 82 701 Hop . | . . . . . . . . . Pick Up 81 | 12 . 1 17 29 13 . . 9 Fast Attach 60 | 7 . 1 4 14 11 . 2 21 Attach 31 | 1 . . 1 14 5 . . 10 Detach 12 | 1 . . 1 1 6 . . 3 Swap 47 | . . 2 4 27 14 . . . Drop 81 | 4 . 2 18 29 23 . 1 4 Fire 85 | 28 . 4 . 34 4 . . 15 Melee 194 | . . . . 77 60 . . 57 Ram . | . . . . . . . . . Kick . | . . . . . . . . . Crush . | . . . . . . . . . Escape Stasis 1 | . . . . 1 . . . . Rewire . | . . . . . . . . . Trap . | . . . . . . . . . Miscellaneous 2 | . . . . . 2 . . . Route ------- -11/Scrapyard -10/Materials -10/Subcaves (discovered 3 exits: [*Mat] / [*Rec] / *Scr) -7/Scraptown (discovered 2 exits: *Fac x2) -5/Factory -4/Factory -4/Upper Caves -4/Upper Caves -3/Research History --------- Turn | Location | Event 8 | -11/Scrapyard | Discovered new exit (range 15) 341 | -11/Scrapyard | Entered Materials 342 | -10/Materials | Build established: Mutant 342 | -10/Materials | Met a group of wandering Federalists 372 | -10/Materials | Discovered new exit (range 7) 387 | -10/Materials | Entered Subcaves 387 | -10/Subcaves | Accompanied by 5 allies 388 | -10/Subcaves | Continued accompanying wandering Federalists (6) 388 | -10/Subcaves | Approached by a straggling Scientist 480 | -10/Subcaves | Discovered new exit (range 9) 538 | -10/Subcaves | Shifting Twisted Machinery released Piercing Trap 570 | -10/Subcaves | Discovered new exit (range 9) 624 | -10/Subcaves | Wandering Federalist uncovered a shortcut to Scraptown 632 | -10/Subcaves | Entered Scraptown 661 | -7/Scraptown | Heard Great Nut preacher, LISTEN AND RECITE! 1267 | -7/Scraptown | Visited Awakened 1352 | -7/Scraptown | Scanned Subdweller tech in exchange for log data 1357 | -7/Scraptown | Learned Factory trap positions 1359 | -7/Scraptown | Learned 12 Factory zone layouts 1384 | -7/Scraptown | Discovered new exit (range 9) 1954 | -7/Scraptown | Visited UFD Registry 1954 | -7/Scraptown | Registered with UFD as "Steamtail" 2211 | -7/Scraptown | Visited Junk Repository 2355 | -7/Scraptown | Visited Curators Association 2398 | -7/Scraptown | Visited Junk Repository 3087 | -7/Scraptown | Met Optimus 3087 | -7/Scraptown | Accepted into 0bPrime 3182 | -7/Scraptown | Discovered new exit (range 5) 3191 | -7/Scraptown | Entered Factory 3191 | -5/Factory | Evolved 10 slots: Propulsion x4, Utility x6 3192 | -5/Factory | Identified exit to Factory 3193 | -5/Factory | Loaded intel: 79 trap records 3283 | -5/Factory | Loaded intel: 8 recycling unit locations 3321 | -5/Factory | Learned location of Protoforge (-2) 3503 | -5/Factory | Build established: Derelict-Mutant 3903 | -5/Factory | Lost 3 parts (3u) 4088 | -5/Factory | Garrison activated, responded to threat 4362 | -5/Factory | Build established: Gladiator 4517 | -5/Factory | Crushed by falling debris 4518 | -5/Factory | System corruption reached 10% 4548 | -5/Factory | Lost 3 parts (1n2w) 4623 | -5/Factory | Lost 3 parts (1n2u) 4700 | -5/Factory | Found Hvy. Reactive Plating 4797 | -5/Factory | Entered another Factory area 4797 | -4/Factory | Accompanied by 1 ally 4797 | -4/Factory | Evolved 2 slots: Utility x2 5433 | -4/Factory | Lost 3 allies 5451 | -4/Factory | Lost 4 parts (1n3u) 5453 | -4/Factory | Loaded intel: 8 recycling unit locations 5543 | -4/Factory | Crushed by falling debris 5543 | -4/Factory | System corruption reached 10% 5585 | -4/Factory | Lost 5 parts (1p3n1u) 5614 | -4/Factory | Spotted B-86 Titan 5638 | -4/Factory | Discovered new exit (range 5) 5641 | -4/Factory | Identified exit to Upper Caves 5641 | -4/Factory | Entered Upper Caves 5643 | -4/Upper Caves | Learned location of Testing (-3) 5675 | -4/Upper Caves | Spotted B-86 Titan 5753 | -4/Upper Caves | Discovered new exit (range 13) 5756 | -4/Upper Caves | Attracted the attention of an 0b10 checkpoint 5760 | -4/Upper Caves | Core integrity fell below 50% 5760 | -4/Upper Caves | Identified exit to Upper Caves 5761 | -4/Upper Caves | Entered another Upper Caves area 5806 | -4/Upper Caves | Discovered new exit (range 9) 5814 | -4/Upper Caves | Identified exit to Research 5814 | -4/Upper Caves | Entered Research 5814 | -3/Research | Evolved 2 slots: Utility x2 5850 | -3/Research | Build established: Mutant 6093 | -3/Research | Spotted B-86 Titan 6163 | -3/Research | Build established: Gladiator 6184 | -3/Research | System corruption reached 10% 6233 | -3/Research | Core integrity fell below 50% 6262 | -3/Research | Lost 10 parts (1p3n4u2w) 6327 | -3/Research | Crushed by falling debris 6327 | -3/Research | System corruption reached 30% 6365 | -3/Research | Lost 7 parts (4n1u2w) 6381 | -3/Research | Found Gamma Bomb Array 6451 | -3/Research | Core integrity fell below 20% 6474 | -3/Research | Destroyed by B-86 Titan with Railgun Last Messages --------------- 06440_ Adv. Target Analyzer destroyed. 06442_ S-43 Plague destroyed. 06443_ Xenon Bombardment Thruster destroyed. 06444_ Adv. Melee Analysis Suite destroyed. 06445_ System corrupted: Matter fused (-10). 06448_ S-43 Plague destroyed. 06454_ Hvy. Pick destroyed. 06454_ Dropped Med. Storage Unit. 06455_ Acquired 5 matter. 06456_ Acquired 10 matter. 06458_ K-01 Serf collects debris. 06461_